bitfinex/quotes_ETHUSD_20250626
["timestamp","ask_amount","ask_price","bid_price","bid_amount"]
[1750899727643,1.19138848,2424.6,2424.5,2.06228088]
[1750899727850,0.2056,2424.6,2424.5,2.06228088]
[1750899728182,0.98578848,2424.7,2424.4,2.06236594]
[1750899728342,10.98578848,2424.7,2424.4,4.12462437]
[1750899728746,6.687,2424.6,2424.4,4.12462437]
[1750899728968,6.687,2424.6,2424.5,4.12456176]
[1750899729394,6.687,2424.6,2424.4,4.12464595]
[1750899729594,6.687,2424.6,2424.3,4.33045769]
[1750899730094,7.67278848,2424.6,2424.3,4.33045769]
[1750899730300,6.687,2424.6,2424.3,4.33045769]
[1750899730502,6.687,2424.6,2424.4,4.12470619]
[1750899730857,6.687,2424.6,2424.5,4.12456176]
[1750899731063,0.98578848,2424.7,2424.6,4.12439165]
[1750899731286,8.0156,2424.8,2424.7,4.12422155]
[1750899731491,26.4236,2424.8,2424.7,4.12422155]
[1750899731693,27.40938848,2424.8,2424.7,4.12422155]
[1750899731897,27.20378848,2424.8,2424.7,4.12422155]
[1750899732383,18.79578848,2424.8,2424.7,4.12422155]
[1750899732588,27.20378848,2424.8,2424.7,4.12422155]
[1750899733189,10.0,2424.7,2424.6,4.32992913]
[1750899737773,24.496,2424.8,2424.7,4.12422155]
[1750899738099,27.20160543,2424.8,2424.7,4.12422155]
[1750899740596,9.894,2425.0,2424.9,4.12388139]
[1750899740904,21.615,2425.0,2424.9,4.94968139]
[1750899741106,11.615,2425.0,2424.9,5.15528139]
[1750899742275,1.721,2425.0,2424.9,5.15528139]
[1750899743015,0.98571773,2425.3,2425.1,4.12354129]
[1750899743222,9.895,2425.9,2425.1,4.12354129]
[1750899743223,1.721,2425.4,2425.3,4.12320125]
[1750899743508,1.721,2425.7,2425.6,4.94849129]
[1750899743821,11.721,2425.7,2425.6,5.15409129]
[1750899744309,1.721,2425.7,2425.6,5.15409129]
[1750899744513,11.721,2425.7,2425.6,5.15409129]
[1750899745092,1.721,2425.7,2425.6,5.15409129]
[1750899748813,1.721,2425.7,2425.6,4.32829129]
[1750899750831,2.0934,2425.7,2425.0,0.8011]
[1750899751119,2.0934,2425.7,2425.3,0.2056]
[1750899751120,6.684,2425.6,2425.3,0.2056]
[1750899751482,6.684,2425.6,2425.0,4.92473728]
[1750899751688,10.0,2425.5,2425.2,0.2056]
[1750899752019,6.684,2425.4,2425.2,0.2056]
[1750899753596,16.684,2425.4,2425.3,4.12320125]
[1750899755324,16.684,2425.4,2425.2,4.32888966]
[1750899755809,16.684,2425.4,2425.3,4.12320125]
[1750899755985,16.684,2425.4,2425.2,4.32890795]
[1750899756721,16.684,2425.4,2425.2,0.2056]
[1750899757819,1.719,2425.3,2425.2,0.2056]
[1750899758191,13.9317,2425.3,2424.8,0.8011]
[1750899758390,6.683,2425.2,2424.9,4.32937613]
[1750899758595,6.683,2425.2,2424.9,0.2056]
[1750899759296,6.683,2425.2,2424.9,4.3294315]
[1750899759509,6.683,2425.2,2425.0,4.12371134]
[1750899759706,6.683,2425.2,2424.9,4.32940017]
[1750899759910,6.683,2425.2,2425.0,4.12357513]
[1750899760195,6.683,2425.2,2425.1,4.12354129]
[1750899760918,1.719,2425.3,2425.2,4.12337126]
[1750899761119,8.402,2425.3,2425.2,4.12337126]
[1750899761320,11.719,2425.3,2425.2,5.03117252]
[1750899762833,11.719,2425.3,2425.2,4.12337126]
[1750899765201,1.719,2425.3,2425.2,4.12337126]
[1750899777147,1.719,2425.3,2424.9,4.12385786]
[1750899777148,1.719,2425.3,2424.9,4.1237935]
[1750899777310,1.719,2425.3,2424.7,0.7538]
[1750899777311,18.03912481,2425.2,2425.0,0.2056]
[1750899777657,0.98472481,2425.1,2425.0,4.32931134]
[1750899781034,0.98472481,2425.1,2425.0,0.2056]
[1750899782739,0.98472481,2425.1,2425.0,4.32931134]
[1750899783216,0.2056,2425.4,2425.3,4.12320125]
[1750899783418,0.2056,2425.4,2425.3,4.32880125]
[1750899783419,1.718,2425.4,2425.3,4.32880125]
[1750899783828,2.70397702,2425.4,2425.3,4.32880125]
[1750899784421,1.718,2425.4,2425.3,4.32880125]
[1750899784649,2.7039095,2425.4,2425.3,4.32880125]
[1750899784817,1.718,2425.4,2425.3,4.32880125]
[1750899787414,2.70389145,2425.4,2425.3,4.32880125]
[1750899787667,1.718,2425.4,2425.3,4.32880125]
[1750899788919,2.70409231,2425.4,2425.3,4.32880125]
[1750899789127,2.70409215,2425.4,2425.3,4.32880125]
[1750899789455,2.70414459,2425.4,2425.3,4.32880125]
[1750899791969,1.718,2425.4,2425.3,4.32880125]
[1750899792129,2.70414459,2425.4,2425.3,4.32880125]
[1750899792857,1.718,2425.4,2425.3,4.32880125]
[1750899793860,0.578,2425.8,2425.5,4.12286126]
[1750899794050,1.718,2425.8,2425.7,4.12252133]
[1750899794359,12.70430268,2425.8,2425.7,4.12252133]
[1750899797559,12.70364602,2425.8,2425.7,4.12252133]
[1750899798533,13.07604602,2425.8,2425.6,0.2056]
[1750899798734,12.0904,2425.8,2425.7,4.12252133]
[1750899798933,13.07590478,2425.8,2425.7,4.12252133]
[1750899799841,10.0,2425.7,2425.6,0.2056]
[1750899800042,0.578,2425.6,2424.6,0.8203]
[1750899800245,10.0,2425.2,2424.9,4.32946368]
[1750899800569,8.398,2425.1,2424.9,4.32946368]
[1750899800735,9.38350478,2425.1,2424.9,4.32946368]
[1750899800934,8.398,2425.1,2425.0,4.12371134]
[1750899802967,16.68,2425.2,2425.1,4.12354129]
[1750899803136,18.398,2425.2,2425.1,4.12354129]
[1750899803767,1.718,2425.2,2425.1,5.04435655]
[1750899803978,1.718,2425.2,2425.1,5.79965655]
[1750899805877,17.81,2425.5,2425.4,4.12303125]
[1750899806048,17.81,2425.5,2425.4,4.32863125]
[1750899807779,7.81,2425.5,2425.4,4.32863125]
[1750899807957,7.81,2425.5,2425.4,5.17381222]
[1750899810568,1.718,2425.6,2425.5,4.12286126]
[1750899811060,1.718,2425.6,2425.5,4.32846126]
[1750899812299,1.718,2425.6,2425.5,4.32846126]
[1750899818499,1.717,2425.9,2425.8,4.12235138]
[1750899818965,1.717,2425.9,2425.8,4.32795138]
[1750899819472,1.717,2425.9,2425.8,5.11305138]
[1750899820672,7.81,2426.1,2426.0,4.12201154]
[1750899820872,11.717,2426.3,2426.2,4.12167175]
[1750899821500,11.717,2426.3,2426.2,4.32727175]
[1750899822007,12.70225315,2426.3,2426.2,4.32727175]
[1750899822796,11.717,2426.3,2426.2,4.32727175]
[1750899825718,1.717,2426.3,2426.2,5.17218069]
[1750899841533,10.0,2426.8,2426.7,4.12082251]
[1750899841736,11.716,2426.8,2426.7,4.12082251]
[1750899843841,1.716,2426.8,2426.7,4.12082251]
[1750899844042,1.716,2427.2,2427.1,4.12014338]
[1750899849947,1.716,2427.2,2427.0,0.2056]
[1750899849948,2.0884,2427.2,2427.0,0.2056]
[1750899850155,6.675,2427.1,2426.4,0.7792]
[1750899850454,6.675,2427.1,2426.2,0.84490894]
[1750899850455,0.3724,2426.9,2426.2,0.7792]
[1750899850630,7.34194838,2426.7,2426.3,0.2056]
[1750899850948,11.715,2426.6,2426.3,0.2056]
[1750899851252,0.3724,2426.5,2426.3,0.2056]
[1750899851450,7.0474,2426.5,2426.3,0.2056]
[1750899851651,17.54754838,2426.4,2426.0,0.2056]
[1750899851837,11.35698292,2426.3,2426.0,0.2056]
[1750899852150,6.675,2426.2,2426.0,0.2056]
[1750899852348,1.715,2426.1,2426.0,0.2056]
[1750899853127,1.715,2426.1,2425.7,4.32802349]
[1750899853650,1.715,2426.1,2425.8,4.12232691]
[1750899854051,1.715,2426.1,2425.7,4.3280615]
[1750899854254,1.715,2426.1,2425.8,4.12235007]
[1750899854754,11.715,2426.1,2425.8,4.12235007]
[1750899855945,11.715,2426.1,2425.9,4.12211834]
[1750899856140,11.715,2426.1,2426.0,4.12201154]
[1750899857660,11.715,2426.1,2425.9,4.12211245]
[1750899858844,13.6118,2426.1,2425.8,4.1221953]
[1750899859655,11.715,2426.1,2425.8,4.1221953]
[1750899860029,11.715,2426.1,2425.7,4.32807366]
[1750899860827,11.715,2426.1,2425.8,4.12231087]
[1750899861357,11.715,2426.1,2425.8,4.12235138]
[1750899863239,11.715,2426.1,2425.9,4.122156]
[1750899864460,11.715,2426.1,2425.8,4.12230039]
[1750899864661,11.715,2426.1,2425.9,4.12212435]
[1750899865760,11.715,2426.1,2426.0,4.12201154]
[1750899866731,11.715,2426.1,2425.9,4.12211497]
[1750899867332,11.715,2426.1,2425.7,4.32802133]
[1750899867662,6.676,2426.0,2425.8,4.12234735]
[1750899868853,6.676,2426.0,2425.9,4.12218145]
[1750899870773,6.676,2426.0,2425.8,4.12233449]
[1750899873760,6.676,2426.0,2425.7,4.32803669]
[1750899874866,6.676,2426.0,2425.7,0.2056]
[1750899875450,6.676,2426.0,2425.7,4.32810324]
[1750899877367,6.676,2426.0,2425.8,4.12234954]
[1750899878474,7.66153259,2426.0,2425.8,4.12234954]
[1750899879570,0.98553259,2425.9,2425.8,4.12234954]
[1750899880280,0.98553259,2425.9,2425.7,4.32810599]
[1750899880281,6.676,2426.0,2425.9,4.12218145]
[1750899880449,7.66285689,2426.0,2425.9,4.12218145]
[1750899881388,0.98685689,2426.0,2425.9,4.12218145]
[1750899886757,0.98685689,2426.0,2425.9,4.96719226]
[1750899886957,10.0,2426.1,2426.0,4.12201154]
[1750899887187,10.98806396,2426.1,2426.0,4.32761154]
[1750899888957,0.98806396,2426.1,2426.0,4.32761154]
[1750899889161,10.0,2426.5,2426.4,4.12133201]
[1750899889378,21.18141632,2426.5,2426.3,4.12144227]
[1750899889695,0.98785632,2426.4,2426.3,4.32710187]
[1750899891072,0.98785632,2426.4,2426.3,0.2056]
[1750899892158,0.98785632,2426.4,2426.3,4.32710187]
[1750899894605,0.98785632,2426.4,2426.3,0.2056]
[1750899898112,3.56427003,2426.4,2426.3,0.2056]
[1750899898287,0.98785632,2426.4,2426.1,0.2056]
[1750899898474,0.98785632,2426.3,2426.1,0.2056]
[1750899898675,0.98785632,2426.2,2426.1,0.2056]
[1750899899470,0.98785632,2426.2,2426.0,4.12190961]
[1750899899667,0.98785632,2426.1,2426.0,4.12190961]
[1750899899889,17.66285632,2426.1,2426.0,0.2056]
[1750899900095,17.66285632,2426.1,2425.8,0.2056]
[1750899900404,2.70285632,2426.0,2425.8,0.2056]
[1750899900573,0.98785632,2425.9,2425.8,0.2056]
[1750899901204,0.63061732,2425.9,2425.8,0.2056]
[1750899901811,0.63061732,2425.9,2425.8,4.32795138]
[1750899903114,0.63061732,2425.9,2425.8,0.2056]
[1750899906622,10.0,2425.8,2424.3,5.83990203]
[1750899906825,7.34194838,2425.5,2424.0,17.23094838]
[1750899906982,18.39,2425.4,2424.8,4.12401686]
[1750899907180,0.2056,2425.3,2424.9,0.2056]
[1750899907387,1.715,2425.3,2425.2,4.12337126]
[1750899907610,1.715,2425.3,2425.2,4.32897126]
[1750899911685,1.715,2425.3,2425.2,5.25023105]
[1750899912505,1.715,2425.3,2425.2,6.00853105]
[1750899912702,10.0,2425.7,2425.6,4.12269129]
[1750899913030,9.525,2425.9,2425.8,4.12235138]
[1750899913216,19.525,2425.9,2425.8,4.12235138]
[1750899913412,20.51019486,2425.9,2425.8,4.12235138]
[1750899916014,19.525,2425.9,2425.8,4.12235138]
[1750899916414,11.715,2425.9,2425.8,4.12235138]
[1750899920697,18.39,2425.9,2425.8,4.12235138]
[1750899924747,19.3758617,2425.9,2425.8,4.12235138]
[1750899924914,18.39,2425.9,2425.8,4.12235138]
[1750899925516,19.37597279,2425.9,2425.8,4.12235138]
[1750899926805,19.3760979,2425.9,2425.8,4.12235138]
[1750899927005,18.39,2425.9,2425.8,4.12235138]
[1750899927435,19.3761999,2425.9,2425.8,4.12235138]
[1750899932849,19.3761999,2425.9,2425.8,4.32795138]
[1750899934248,19.3761999,2425.9,2425.8,0.2056]
[1750899934549,21.68621989,2425.9,2425.6,0.2056]
[1750899934725,0.9861999,2425.8,2425.6,0.2056]
[1750899935047,20.70001999,2425.9,2425.6,0.2056]
[1750899935048,7.6601999,2425.7,2425.6,0.2056]
[1750899935217,6.674,2425.7,2425.6,0.2056]
[1750899935541,7.6601999,2425.7,2425.5,4.12284313]
[1750899935844,6.674,2425.7,2425.6,4.12269129]
[1750899936054,7.6607418,2425.7,2425.6,4.12269129]
[1750899936257,6.674,2425.7,2425.6,4.12269129]
[1750899938026,7.66081507,2425.7,2425.6,4.12269129]
[1750899938329,6.674,2425.7,2425.6,4.12269129]
[1750899938658,7.66081507,2425.7,2425.6,4.12269129]
[1750899938854,6.674,2425.7,2425.6,4.12269129]
[1750899939153,7.66081507,2425.7,2425.6,4.12269129]
[1750899941437,7.66081507,2425.7,2425.5,0.2056]
[1750899941639,7.66081507,2425.7,2424.8,0.8137]
[1750899941640,0.3724,2425.5,2424.8,0.8137]
[1750899941865,16.92236345,2425.4,2425.0,0.2056]
[1750899942069,0.98681507,2425.3,2425.0,0.2056]
[1750899942243,7.66081507,2425.2,2425.0,0.2056]
[1750899942446,6.674,2425.2,2425.0,0.2056]
[1750899942970,6.674,2425.2,2425.0,4.32928746]
[1750899943144,7.66094745,2425.2,2425.0,4.32928746]
[1750899943345,6.674,2425.2,2425.0,4.32928746]
[1750899943767,6.674,2425.2,2425.1,4.12354129]
[1750899944067,7.66030883,2425.2,2425.1,4.12354129]
[1750899944269,6.674,2425.2,2425.0,4.32922583]
[1750899944568,6.674,2425.2,2425.1,4.12354129]
[1750899945169,6.674,2425.2,2425.0,4.32924353]
[1750899945334,6.674,2425.2,2425.0,0.2056]
[1750899945535,8.03270883,2425.2,2425.0,0.2056]
[1750899946332,8.61374103,2425.2,2424.6,4.90687221]
[1750899946646,0.2056,2425.0,2424.8,4.12395838]
[1750899946963,1.714,2424.9,2424.8,4.12395838]
[1750899950170,1.714,2424.9,2424.7,4.12414445]
[1750899950672,0.3724,2424.8,2424.2,4.125012]
[1750899950962,10.3724,2424.8,2424.4,0.2056]
[1750899951148,10.0,2424.6,2424.4,0.2056]
[1750899951342,10.0,2424.6,2424.2,4.12496036]
[1750899951544,10.0,2424.6,2424.2,4.33056036]
[1750899952237,10.0,2424.6,2424.1,4.12512136]
[1750899952437,0.578,2424.5,2424.0,4.33093007]
[1750899952651,1.715,2424.4,2424.0,4.33093007]
[1750899952851,23.54194838,2424.4,2424.0,4.12537048]
[1750899953166,0.2056,2424.2,2424.0,4.12537048]
[1750899953461,0.2056,2424.2,2423.9,4.12551923]
[1750899953643,0.2056,2424.2,2424.0,4.12540537]
[1750899954027,0.2056,2424.2,2423.9,4.12551516]
[1750899954249,0.2056,2424.2,2423.8,0.9591]
[1750899954448,26.2,2424.4,2424.3,4.12490203]
[1750899954771,26.2,2424.4,2424.2,4.12498658]
[1750899955366,26.2,2424.4,2424.3,4.12490203]
[1750899956755,26.2,2424.4,2424.2,4.12498775]
[1750899957371,26.2,2424.4,2424.1,4.12521075]
[1750899957784,26.2,2424.4,2424.0,4.33094577]
[1750899958079,26.2,2424.4,2423.6,4.12595965]
[1750899958080,0.3724,2424.2,2423.6,0.7935]
[1750899958268,6.8816,2424.1,2423.6,0.2056]
[1750899958785,6.8816,2424.1,2423.7,4.12589589]
[1750899959083,6.8816,2424.1,2423.8,4.12574649]
[1750899959291,10.0,2424.0,2423.6,0.2056]
[1750899959465,8.392,2423.9,2423.6,4.33155186]
[1750899959872,8.392,2423.9,2423.7,4.12592046]
[1750899960411,8.392,2423.9,2423.7,4.12592317]
[1750899960690,11.715,2423.9,2423.8,4.91125294]
[1750899960875,0.2056,2424.1,2423.8,4.91125294]
[1750899961185,10.0,2423.9,2423.8,4.12568011]
[1750899961391,10.0,2423.9,2423.7,4.12586583]
[1750899961590,8.392,2424.0,2423.7,4.12585764]
[1750899961893,10.2056,2424.1,2423.7,4.12585764]
[1750899962194,8.392,2424.0,2423.7,4.12585764]
[1750899963292,8.392,2424.0,2423.8,4.12575035]
[1750899963790,8.392,2424.0,2423.9,4.12558273]
[1750899965699,8.392,2424.0,2423.8,4.12566287]
[1750899967006,8.392,2424.0,2423.6,4.33162738]
[1750899967170,8.392,2424.0,2423.6,0.2056]
[1750899967694,8.392,2424.0,2423.6,4.33165359]
[1750899967915,8.392,2424.0,2423.6,4.33168346]
[1750899968202,8.392,2424.0,2423.7,4.12578304]
[1750899969873,8.392,2424.0,2423.5,4.12613801]
[1750899969874,0.3724,2423.9,2423.5,4.12613801]
[1750899970073,0.2056,2423.8,2423.5,4.12613801]
[1750899970681,0.2056,2423.8,2423.4,4.92806257]
[1750899970978,0.2056,2423.8,2423.4,0.8017]
[1750899971384,0.2056,2423.8,2423.3,4.33212378]
[1750899971990,0.2056,2423.8,2423.4,4.12643393]
[1750899972175,0.2056,2423.8,2423.5,4.12626366]
[1750899972983,10.2056,2423.9,2423.6,4.9306602]
[1750899973284,10.2056,2423.9,2423.6,4.1259602]
[1750899973601,10.2056,2423.9,2423.5,4.33180215]
[1750899973796,10.2056,2423.9,2423.7,4.12585728]
[1750899973995,10.2056,2423.9,2423.7,4.12581885]
[1750899975731,10.2056,2423.9,2423.8,4.12575294]
[1750899977223,10.2056,2423.9,2423.7,4.12584498]
[1750899977374,11.18914922,2423.9,2423.5,4.33180138]
[1750899977574,11.18914922,2423.9,2423.6,4.12601118]
[1750899977970,0.3724,2423.8,2423.1,4.12693879]
[1750899978205,1.56154922,2423.8,2423.3,4.33215779]
[1750899978411,1.56154922,2423.8,2422.9,6.678]
[1750899978412,10.0,2423.5,2423.0,4.12703424]
[1750899978587,2.0874,2423.4,2423.1,0.2056]
[1750899979491,3.07155457,2423.4,2423.1,4.33245984]
[1750899979690,3.07155457,2423.4,2423.1,4.33244235]
[1750899979908,2.0874,2423.4,2423.1,4.33244235]
[1750899980087,3.0715212,2423.4,2423.1,4.33244235]
[1750899980409,0.2056,2423.3,2422.9,4.12717828]
[1750899980582,0.2056,2423.3,2423.0,4.12710795]
[1750899980986,0.2056,2423.3,2423.1,4.12690032]
[1750899981180,0.2056,2423.3,2423.2,4.12677451]
[1750899981380,0.2056,2423.3,2422.8,4.33298408]
[1750899981582,13.27708854,2423.4,2423.3,4.12660421]
[1750899981816,11.19006874,2423.4,2423.3,4.12660421]
[1750899982116,11.715,2423.4,2423.3,4.33220421]
[1750899988126,1.715,2423.4,2423.3,4.33220421]
[1750899988994,1.715,2423.4,2423.3,5.15650421]
[1750899989190,1.715,2423.4,2423.3,6.0848299]
[1750899992629,10.0,2424.0,2423.6,4.91189341]
[1750899992830,1.715,2424.2,2424.1,4.12524235]
[1750899993340,11.715,2424.2,2424.1,4.12524235]
[1750899995513,11.715,2424.2,2424.1,4.33084235]
[1750899996253,0.2056,2424.7,2424.5,4.12456176]
[1750899996572,4.12235536,2425.8,2424.5,4.12456176]
[1750899996573,2.0864,2425.3,2425.2,4.12332961]
[1750899997066,12.0864,2425.3,2425.2,4.12332961]
[1750899997210,13.07238934,2425.3,2425.2,4.12332961]
[1750899997407,12.0864,2425.3,2425.2,4.12332961]
[1750899997606,12.0864,2425.3,2425.1,4.1234624]
[1750899998046,12.0864,2425.3,2425.2,4.12337126]
[1750899998410,12.0864,2425.3,2425.0,4.1236681]
[1750899998644,12.0864,2425.3,2425.2,4.12337126]
[1750899999242,12.0864,2425.3,2425.1,4.12353069]
[1750899999243,18.7694,2425.3,2424.5,0.8108]
[1750899999447,7.34194838,2425.2,2424.5,0.8108]
[1750899999642,18.7694,2425.3,2424.2,0.7735]
[1750899999643,7.34194838,2424.9,2424.2,0.7735]
[1750899999851,7.34194838,2424.9,2424.1,0.84562311]
[1750899999852,11.714,2424.8,2424.1,0.84562311]
[1750900000146,7.34194838,2424.6,2424.2,4.12494467]
[1750900000330,6.688,2424.5,2424.2,4.12494467]
[1750900000537,6.688,2424.5,2424.1,4.1251456]
[1750900000748,6.688,2424.5,2424.2,4.12503483]
[1750900000911,6.688,2424.5,2424.4,4.12473189]
[1750900001644,6.688,2424.5,2424.2,4.12503483]
[1750900001845,6.688,2424.5,2424.4,4.12473189]
[1750900002542,6.688,2424.5,2424.3,4.12482144]
[1750900003249,6.688,2424.5,2424.4,4.12473189]
[1750900003563,6.688,2424.5,2424.4,4.9497085]
[1750900003847,18.401,2424.8,2424.6,4.12424109]
[1750900005353,18.401,2424.8,2424.4,4.12470127]
[1750900005549,18.401,2424.8,2424.6,4.12428543]
[1750900006053,18.401,2424.8,2424.7,4.12422155]
[1750900006852,10.0,2424.8,2424.7,4.12422155]
[1750900007356,18.4,2424.8,2424.7,4.12422155]
[1750900008464,7.81,2425.4,2424.8,4.12405146]
[1750900008645,4.10443254,2426.5,2425.4,4.12303125]
[1750900008646,9.524,2425.5,2425.4,4.12303125]
[1750900008956,1.714,2425.5,2425.4,4.32863125]
[1750900009160,1.714,2425.5,2425.4,5.25459221]
[1750900009656,1.714,2425.5,2425.4,6.06239221]
[1750900009860,14.507,2426.0,2425.9,4.12218145]
[1750900010023,1.714,2426.0,2425.9,4.12218145]
[1750900010225,1.714,2426.0,2425.9,5.13558145]
[1750900013854,1.714,2426.0,2425.9,6.06137292]
[1750900015890,11.714,2426.0,2425.5,0.7895]
[1750900016051,18.41,2426.0,2425.6,0.2056]
[1750900017761,18.41,2426.0,2425.6,4.32819657]
[1750900018164,18.41,2426.0,2425.6,0.2056]
[1750900018680,18.41,2426.0,2425.6,4.32824127]
[1750900019379,18.41,2426.0,2425.6,0.2056]
[1750900020459,0.3724,2425.9,2425.1,0.7868]
[1750900020658,10.0,2425.7,2425.4,4.12291473]
[1750900020870,6.7,2425.6,2425.3,4.3287276]
[1750900021182,1.713,2425.5,2425.3,0.2056]
[1750900021850,0.3724,2425.4,2424.8,0.8155]
[1750900022050,0.3724,2425.4,2425.1,0.2056]
[1750900022251,7.0714,2425.4,2425.1,0.2056]
[1750900022654,10.0,2425.3,2425.1,0.2056]
[1750900023666,10.0,2425.3,2425.1,4.3291287]
[1750900023988,10.0,2425.3,2425.1,0.2056]
[1750900024787,11.713,2425.3,2425.1,0.2056]
[1750900024957,11.713,2425.3,2425.2,4.12337126]
[1750900025552,11.713,2425.3,2425.2,5.23215022]
[1750900025553,1.713,2425.3,2425.2,5.23215022]
[1750900026355,0.2056,2425.9,2425.2,5.23215022]
[1750900026686,16.598,2426.1,2426.0,4.12201154]
[1750900026860,28.327,2426.1,2425.8,1.0036]
[1750900027057,28.327,2426.1,2426.0,0.2056]
[1750900027960,28.327,2426.1,2425.2,5.02644169]
[1750900027961,0.3724,2426.0,2425.5,4.12277593]
[1750900028168,1.35399306,2426.0,2425.7,0.2056]
[1750900028366,1.35411929,2426.0,2425.7,0.2056]
[1750900028556,0.3724,2426.0,2425.7,0.2056]
[1750900028956,28.5326,2426.1,2425.7,0.2056]
[1750900029188,28.327,2426.1,2425.9,4.1220605]
[1750900029394,28.327,2426.1,2425.9,0.2056]
[1750900029886,21.625,2426.1,2425.9,0.2056]
[1750900030088,21.625,2426.1,2425.9,4.32767238]
[1750900030391,21.625,2426.1,2426.0,4.12201154]
[1750900030587,21.625,2426.1,2425.9,0.2056]
[1750900031571,0.98207681,2426.0,2425.9,0.2056]
[1750900031885,0.98207681,2426.0,2425.5,4.12278802]
[1750900031886,10.0,2425.9,2425.3,0.7749]
[1750900032097,10.98205858,2425.9,2425.7,0.2056]
[1750900032296,10.0,2425.9,2425.7,0.2056]
[1750900032874,10.98247082,2425.9,2425.7,0.2056]
[1750900033074,10.98245546,2425.9,2425.7,0.2056]
[1750900033474,10.0,2425.9,2425.7,0.2056]
[1750900033698,10.98280249,2425.9,2425.7,0.2056]
[1750900034006,10.0,2425.9,2425.7,4.32804748]
[1750900034776,10.0,2425.9,2425.8,4.12235138]
[1750900035111,10.0,2425.9,2425.7,4.32806129]
[1750900035267,10.98329347,2425.9,2425.7,4.32806129]
[1750900035462,10.98329347,2425.9,2425.7,0.2056]
[1750900036003,10.98329347,2425.9,2425.7,4.32803602]
[1750900037200,10.98329347,2425.9,2425.7,0.2056]
[1750900037990,10.98329347,2425.9,2425.8,4.12235138]
[1750900039085,10.98329347,2425.9,2425.7,4.32803744]
[1750900039405,0.98329347,2425.8,2425.7,4.32803744]
[1750900039807,10.98329347,2425.9,2425.8,4.12235138]
[1750900040522,10.98329347,2425.9,2425.8,4.88295138]
[1750900040712,0.98329347,2425.9,2425.8,5.9890971]
[1750900040900,11.729,2426.0,2425.9,4.12218145]
[1750900041207,12.71458874,2426.0,2425.9,4.12218145]
[1750900041396,12.71458874,2426.0,2425.8,5.08854875]
[1750900041577,11.729,2426.0,2425.8,5.08854875]
[1750900041777,12.71466462,2426.0,2425.8,5.08854875]
[1750900042219,0.98566462,2425.9,2425.8,0.2056]
[1750900045418,0.98566462,2425.9,2425.7,0.2056]
[1750900045591,0.98566462,2425.8,2425.7,0.2056]
[1750900045797,0.98566462,2425.9,2425.7,0.2056]
[1750900046009,0.98566462,2425.8,2425.7,0.2056]
[1750900046219,0.98566462,2425.9,2425.7,0.2056]
[1750900046386,0.98566462,2425.8,2425.7,4.32812133]
[1750900046583,0.98566462,2425.9,2425.7,4.32812133]
[1750900046809,0.98566462,2425.8,2425.7,4.32812133]
[1750900047022,0.98566462,2425.9,2425.7,4.32812133]
[1750900047200,18.431,2426.0,2425.8,4.12235138]
[1750900047519,11.729,2426.0,2425.9,0.2056]
[1750900047721,12.71503537,2426.0,2425.9,4.32778145]
[1750900048698,11.729,2426.0,2425.9,4.32778145]
[1750900048903,11.729,2426.0,2425.9,5.15788145]
[1750900051202,10.0,2426.0,2425.9,5.15788145]
[1750900052210,10.98558243,2426.0,2425.9,4.32778145]
[1750900053341,10.98558243,2426.0,2425.9,0.2056]
[1750900053512,11.35798243,2426.0,2425.4,0.8235]
[1750900053832,10.98558243,2426.0,2425.8,4.32780646]
[1750900054218,0.98558243,2425.9,2425.8,0.2056]
[1750900054620,0.98558243,2425.9,2425.8,4.32795138]
[1750900056232,0.98558243,2425.9,2425.8,0.2056]
[1750900056840,0.98558243,2425.9,2425.8,4.32795138]
[1750900057048,0.98558243,2425.9,2425.8,0.2056]
[1750900059532,0.98558243,2425.9,2425.8,4.32795138]
[1750900059739,0.98558243,2425.9,2425.8,0.2056]
[1750900059915,0.98558243,2425.9,2425.8,4.32795138]
[1750900060711,0.98558243,2425.9,2425.8,0.2056]
[1750900069022,10.0,2425.8,2425.6,0.2056]
[1750900069359,10.0,2425.8,2425.3,0.2056]
[1750900069360,10.0,2425.6,2425.3,0.2056]
[1750900069561,9.76998243,2425.5,2425.2,0.2056]
[1750900069861,0.98558243,2425.4,2425.2,0.2056]
[1750900070023,8.7844,2425.5,2425.2,0.2056]
[1750900070024,0.98558243,2425.3,2425.2,0.2056]
[1750900070226,0.98558243,2425.4,2425.2,4.32897126]
[1750900070439,0.98558243,2425.3,2425.2,4.32897126]
[1750900070636,0.98558243,2425.4,2425.3,4.91960125]
[1750900070857,0.98558243,2425.5,2425.4,4.12303125]
[1750900071318,0.98558243,2425.5,2425.4,0.2056]
[1750900072056,1.35798243,2425.5,2425.4,0.2056]
[1750900072254,10.0,2425.4,2425.0,0.2056]
[1750900072554,10.3724,2425.1,2424.3,0.8308]
[1750900072722,10.3724,2425.1,2424.6,0.2056]
[1750900072723,10.0,2424.9,2424.6,0.2056]
[1750900072922,0.98558243,2424.8,2424.6,0.2056]
[1750900073257,10.98558243,2424.9,2424.6,0.2056]
[1750900075634,10.98558243,2424.9,2424.6,4.32997535]
[1750900076036,10.0,2424.9,2424.8,4.12405146]
[1750900076261,10.0,2424.9,2424.6,4.3299488]
[1750900076731,10.0,2424.9,2424.7,4.1242055]
[1750900077843,10.0,2424.9,2424.6,0.2056]
[1750900078043,1.9316,2425.0,2424.9,4.12388139]
[1750900078432,1.726,2425.0,2424.8,4.12396406]
[1750900078643,1.726,2425.0,2424.8,4.32956406]
[1750900079660,1.726,2425.0,2424.9,4.12388139]
[1750900079863,1.726,2425.0,2424.9,4.32948139]
[1750900080161,1.726,2425.0,2424.9,0.2056]
[1750900080361,1.726,2425.0,2424.8,0.2056]
[1750900080572,11.726,2425.0,2424.8,0.2056]
[1750900081865,8.426,2425.0,2424.8,0.2056]
[1750900083976,0.98277745,2425.1,2425.0,4.12371134]
[1750900084161,10.0,2425.1,2424.9,4.12381497]